bitfinex-derivatives/quotes_SOLF0:USTF0_20250404
["timestamp","ask_amount","ask_price","bid_price","bid_amount"]
[1743763088879,0.05854361,116.17,116.15,39.02]
[1743763089178,8.6095,116.16,116.15,39.02]
[1743763089880,8.66764361,116.17,116.15,39.02]
[1743763090074,8.66764361,116.17,116.14,8.6108]
[1743763090278,0.05854361,116.17,116.12,30.58798408]
[1743763090482,0.05854361,116.17,116.13,38.86]
[1743763090981,0.05854361,116.17,116.15,8.6095]
[1743763091181,0.05854361,116.17,116.16,38.84]
[1743763091677,4.5223,116.23,116.18,8.6077]
[1743763091884,4.5223,116.23,116.16,38.84]
[1743763092078,4.3603,116.24,116.18,30.58798408]
[1743763092282,4.4418,116.26,116.19,38.94]
[1743763092481,6.16208212,116.26,116.2,30.58798408]
[1743763092680,0.06610629,116.24,116.22,8.6049]
[1743763092881,0.06610629,116.24,116.21,0.05485188]
[1743763093085,0.06610629,116.24,116.22,38.94]
[1743763093777,0.06610629,116.24,116.23,8.6043]
[1743763095182,0.06610629,116.24,116.22,47.5446]
[1743763095384,0.06610629,116.24,116.22,38.94]
[1743763095784,0.06610629,116.24,116.23,8.6043]
[1743763097777,0.06610629,116.24,116.23,47.3043]
[1743763098287,0.06610629,116.24,116.23,38.7]
[1743763098887,0.06610629,116.24,116.23,47.3043]
[1743763099886,13.0413,116.3,116.27,8.601]
[1743763101091,0.05691608,116.3,116.27,0.05501705]
[1743763101591,0.05691608,116.3,116.29,8.5998]
[1743763102293,0.05691608,116.3,116.29,47.2598]
[1743763102593,0.05691608,116.3,116.29,38.66]
[1743763102788,0.05691608,116.3,116.27,0.05501705]
[1743763103190,8.6006,116.28,116.27,0.05501705]
[1743763103389,0.05691608,116.3,116.22,38.68]
[1743763103586,69.26798408,116.31,116.22,38.68]
[1743763104196,8.6044,116.23,116.18,35.22378408]
[1743763104399,69.26798408,116.27,116.18,38.68]
[1743763104594,0.05956549,116.22,116.19,0.05542119]
[1743763104799,0.05956549,116.22,116.18,38.68]
[1743763104800,8.6065,116.2,116.16,330.2]
[1743763105001,0.05956549,116.22,116.19,0.06521639]
[1743763105203,38.68,116.24,116.19,0.06521639]
[1743763105405,8.6065,116.2,116.19,0.06521639]
[1743763106005,0.06326861,116.22,116.19,0.06521639]
[1743763107598,8.6064,116.21,116.19,0.06521639]
[1743763107798,0.06326861,116.22,116.19,0.06521639]
[1743763108405,8.6065,116.2,116.19,0.06521639]
[1743763108601,38.56,116.21,116.13,43.1958]
[1743763109105,38.56,116.21,116.14,30.58798408]
[1743763109805,0.0575354,116.19,116.14,30.58798408]
[1743763110105,0.0575354,116.19,116.16,8.6094]
[1743763110597,0.0575354,116.19,116.16,38.48]
[1743763110803,0.0575354,116.19,116.16,69.06798408]
[1743763111603,0.0575354,116.19,116.18,8.608]
[1743763111803,0.0575354,116.19,116.16,38.48]
[1743763112205,8.6091,116.17,116.14,8.6105]
[1743763112406,38.5,116.22,116.12,30.58798408]
[1743763112707,8.66879058,116.17,116.14,8.6106]
[1743763112906,8.66879058,116.17,116.13,38.52]
[1743763113507,8.66879058,116.17,116.14,8.6106]
[1743763114208,8.6096,116.16,116.13,47.0912]
[1743763114703,8.6096,116.16,116.14,8.6109]
[1743763115008,8.66879058,116.17,116.14,8.6109]
[1743763115408,0.05969058,116.17,116.13,38.48]
[1743763115804,0.05969058,116.17,116.14,30.58798408]
[1743763116009,0.05969058,116.17,116.13,38.48]
[1743763116204,0.05969058,116.17,116.14,30.58798408]
[1743763116509,0.05969058,116.17,116.16,8.6095]
[1743763117608,0.05969058,116.17,116.16,46.8695]
[1743763118007,0.05969058,116.17,116.16,38.26]
[1743763118414,0.05969058,116.17,116.16,46.8695]
[1743763119007,0.05969058,116.17,116.16,38.26]
[1743763119412,0.05969058,116.17,116.12,38.26]
[1743763120910,8.66879058,116.17,116.14,8.6105]
[1743763121312,0.05969058,116.17,116.12,38.26]
[1743763121517,0.05969058,116.17,116.14,30.58798408]
[1743763121706,0.05969058,116.17,116.15,38.26]
[1743763122115,0.05969058,116.17,116.16,8.6095]
[1743763122911,0.05969058,116.17,116.16,39.19748408]
[1743763123119,8.6059,116.21,116.19,8.607]
[1743763123417,4.5705,116.22,116.18,38.26]
[1743763123619,4.5705,116.22,116.2,8.6058]
[1743763123918,4.5705,116.22,116.18,38.26]
[1743763124121,8.606,116.21,116.18,46.8676]
[1743763124416,8.66418352,116.21,116.19,0.0622325]
[1743763125114,8.6065,116.2,116.19,0.0622325]
[1743763125720,8.66428352,116.21,116.19,0.0622325]
[1743763126018,0.05818352,116.21,116.19,0.0622325]
[1743763126916,0.05818352,116.21,116.2,8.6065]
[1743763127119,0.05818352,116.21,116.19,0.0622325]
[1743763128016,0.05818352,116.21,116.2,8.6065]
[1743763128718,4.4512,116.25,116.2,30.58798408]
[1743763129016,49.16551676,116.27,116.21,38.26]
[1743763129217,49.16551676,116.27,116.22,30.58798408]
[1743763129419,44.80961676,116.27,116.22,30.58798408]
[1743763129819,44.80961676,116.27,116.23,0.05671759]
[1743763130021,0.0555943,116.26,116.24,38.26]
[1743763130323,0.0555943,116.26,116.24,68.84798408]
[1743763131022,0.0555943,116.26,116.24,38.26]
[1743763131718,8.6028,116.25,116.24,38.26]
[1743763131919,0.0555943,116.26,116.24,38.26]
[1743763132223,8.6580943,116.26,116.24,38.26]
[1743763132721,0.0555943,116.26,116.24,38.26]
[1743763132922,0.0555943,116.26,116.24,46.8632]
[1743763133327,0.0555943,116.26,116.25,8.6028]
[1743763134425,9.43e-05,116.26,116.25,8.6028]
[1743763134625,8.5986,116.31,116.28,8.6001]
[1743763134826,8.5986,116.31,116.28,46.8601]
[1743763135121,4.4289,116.32,116.28,38.26]
[1743763135326,8.5992,116.3,116.28,38.26]
[1743763135818,0.06007166,116.3,116.28,38.31433048]
[1743763136024,0.06007166,116.3,116.28,46.91483048]
[1743763136526,0.06007166,116.3,116.28,38.31433048]
[1743763136727,8.65947166,116.3,116.28,38.31433048]
[1743763137125,8.5998,116.29,116.28,38.31433048]
[1743763138425,8.65957166,116.3,116.28,38.31433048]
[1743763139229,0.06007166,116.3,116.28,46.91443048]
[1743763139927,0.06007166,116.3,116.28,38.31433048]
[1743763140423,0.06007166,116.3,116.28,0.05433048]
[1743763141030,8.5998,116.29,116.28,0.05433048]
[1743763141234,0.06007166,116.3,116.28,0.05433048]
[1743763141427,8.65977166,116.3,116.28,0.05433048]
[1743763141831,0.06007166,116.3,116.28,0.05433048]
[1743763142031,0.06007166,116.3,116.28,8.65453048]
[1743763142235,0.06007166,116.3,116.28,0.05433048]
[1743763142432,0.06007166,116.3,116.22,30.58798408]
[1743763142730,30.58798408,116.31,116.24,8.6032]
[1743763142926,30.58798408,116.31,116.23,38.24]
[1743763143130,42.6689,116.32,116.23,38.24]
[1743763143527,0.06342644,116.29,116.26,0.06397124]
[1743763143927,0.06342644,116.29,116.26,38.30397124]
[1743763144127,8.6006,116.28,116.26,38.30397124]
[1743763144328,0.06342644,116.29,116.26,0.06397124]
[1743763144729,8.6013,116.27,116.26,0.06397124]
[1743763145230,0.06342644,116.29,116.27,8.6009]
[1743763145433,0.06342644,116.29,116.26,0.06397124]
[1743763145733,0.06342644,116.29,116.26,38.30397124]
[1743763146336,8.6006,116.28,116.26,38.30397124]
[1743763146835,0.06342644,116.29,116.27,8.6013]
[1743763147035,0.06342644,116.29,116.26,38.30397124]
[1743763148037,0.06342644,116.29,116.27,8.6008]
[1743763148637,0.06342644,116.29,116.26,46.90567124]
[1743763148937,0.06342644,116.29,116.26,38.30397124]
[1743763149138,8.601,116.28,116.26,38.30397124]
[1743763149439,0.06342644,116.29,116.26,38.30397124]
[1743763149739,0.06342644,116.29,116.26,46.90557124]
[1743763149937,0.06342644,116.29,116.26,38.30397124]
[1743763151135,8.6009,116.28,116.26,38.30397124]
[1743763151438,0.06342644,116.29,116.26,38.30397124]
[1743763151639,0.06342644,116.29,116.26,0.06397124]
[1743763152941,8.66362644,116.29,116.26,0.06397124]
[1743763153335,0.06342644,116.29,116.27,8.601]
[1743763153540,0.06342644,116.29,116.26,0.06397124]
[1743763153736,0.06342644,116.29,116.26,38.30397124]
[1743763154136,8.66332644,116.29,116.26,38.30397124]
[1743763154442,0.06342644,116.29,116.27,8.6012]
[1743763154643,8.66332644,116.29,116.26,38.30397124]
[1743763154942,0.06342644,116.29,116.26,38.30397124]
[1743763155143,8.6008,116.28,116.26,38.30397124]
[1743763155342,0.06342644,116.29,116.26,38.30397124]
[1743763155643,8.6013,116.27,116.26,38.30397124]
[1743763156337,8.6008,116.28,116.26,38.30397124]
[1743763156541,8.6008,116.28,116.26,46.90567124]
[1743763156742,8.6008,116.28,116.26,38.30397124]
[1743763157141,8.6013,116.27,116.26,38.30397124]
[1743763157742,8.6013,116.27,116.26,0.06397124]
[1743763157939,30.65141052,116.29,116.2,30.58798408]
[1743763158143,4.3566,116.26,116.18,362.87948408]
[1743763158339,4.3566,116.26,116.21,8.6051]
[1743763158646,8.6039,116.24,116.21,8.6051]
[1743763158843,4.3566,116.26,116.19,8.607]
[1743763159039,8.6061,116.21,116.18,368.58]
[1743763159441,8.6061,116.21,116.18,377.24468812]
[1743763159643,0.057761,116.21,116.18,339.00468812]
[1743763160237,0.057761,116.21,116.18,330.39718812]
[1743763160438,0.057761,116.21,116.18,360.9851722]
[1743763160747,0.057761,116.21,116.2,8.6065]
[1743763160947,4.3566,116.26,116.2,68.82798408]
[1743763161343,12.9591,116.26,116.23,8.6037]
[1743763161841,8.6032,116.25,116.22,8.6047]
[1743763162044,4.3566,116.26,116.2,38.24]
[1743763162246,0.05511971,116.25,116.22,0.05418752]
[1743763162448,8.65831971,116.25,116.22,8.65858752]
[1743763162745,0.05511971,116.25,116.22,0.05418752]
[1743763162946,8.604,116.24,116.22,0.05418752]
[1743763164147,8.604,116.24,116.22,8.65918752]
[1743763164341,0.05511971,116.25,116.22,0.05418752]
[1743763164540,0.05511971,116.25,116.23,38.24]
[1743763164744,0.05511971,116.25,116.24,8.6035]
[1743763167447,8.65821971,116.25,116.23,46.8438]
[1743763167848,0.05511971,116.25,116.23,46.8438]
[1743763168651,0.05511971,116.25,116.24,8.6035]
[1743763169147,0.05511971,116.25,116.23,46.8438]
[1743763169650,0.05511971,116.25,116.24,27.77593612]
[1743763170542,0.05511971,116.25,116.24,19.17243612]
[1743763170748,0.05511971,116.25,116.23,38.24]
[1743763171252,0.05511971,116.25,116.24,27.77593612]
[1743763171747,8.6007,116.28,116.26,8.6017]
[1743763171948,4.3956,116.3,116.26,38.22]
[1743763172748,0.0616098,116.29,116.27,0.06579413]
[1743763173154,8.6006,116.28,116.27,0.06579413]
[1743763173646,0.0616098,116.29,116.27,0.06579413]
[1743763173847,8.6616098,116.29,116.27,0.06579413]
[1743763174044,0.0616098,116.29,116.27,8.66659413]
[1743763174448,0.0616098,116.29,116.28,8.6006]
[1743763174645,0.0616098,116.29,116.27,0.06579413]
[1743763175446,8.6620098,116.29,116.27,0.06579413]
[1743763175646,0.0616098,116.29,116.27,0.06579413]
[1743763176049,0.0616098,116.29,116.28,27.77303612]
[1743763176249,0.0616098,116.29,116.27,0.06579413]
[1743763176751,8.6006,116.28,116.27,0.06579413]
[1743763179755,0.0616098,116.29,116.27,0.06579413]
[1743763179944,0.0616098,116.29,116.27,38.28579413]
[1743763180350,0.0616098,116.29,116.28,27.77303612]
[1743763180551,4.3761,116.35,116.28,19.17243612]
[1743763181651,0.05921459,116.33,116.3,0.05836461]
[1743763181852,8.65651459,116.33,116.31,8.5979]
[1743763182151,0.05921459,116.33,116.3,57.45080073]
[1743763183048,0.05921459,116.33,116.32,8.5976]
[1743763184053,0.05921459,116.33,116.31,8.5979]
[1743763184450,0.05921459,116.33,116.3,57.45080073]
[1743763184654,0.05921459,116.33,116.31,8.5979]
[1743763184853,0.05921459,116.33,116.3,57.45080073]
[1743763185253,0.05921459,116.33,116.32,8.5976]
[1743763185849,0.05921459,116.33,116.32,27.77003612]
[1743763186450,13.253,116.38,116.32,19.17243612]
[1743763186753,4.6594,116.38,116.33,38.2]
[1743763186947,8.5945,116.37,116.33,38.2]
[1743763187151,4.6594,116.38,116.34,8.5958]
[1743763187558,4.6594,116.38,116.33,38.2]
[1743763187559,8.5951,116.36,116.33,38.2]
[1743763187750,8.5951,116.36,116.35,0.05721451]
[1743763192259,8.5961,116.34,116.33,38.2]
[1743763192463,0.05937207,116.37,116.3,38.2]
[1743763192464,19.17243612,116.37,116.3,38.2]
[1743763192664,19.17243612,116.37,116.31,8.5983]
[1743763193265,0.05430714,116.35,116.33,0.06150823]
[1743763193865,8.64980714,116.35,116.33,8.65810823]
[1743763194066,0.05430714,116.35,116.33,0.06150823]
[1743763194567,8.5961,116.34,116.33,0.06150823]
[1743763194867,8.65000714,116.35,116.33,0.06150823]
[1743763195469,8.5961,116.34,116.33,0.06150823]
[1743763195866,0.05430714,116.35,116.33,0.06150823]
[1743763196065,0.05430714,116.35,116.34,8.5961]
[1743763196363,0.05430714,116.35,116.34,65.94853612]
[1743763196668,19.17243612,116.43,116.34,57.35243612]
[1743763196971,26.66083612,116.43,116.34,57.35243612]
[1743763197164,8.5926,116.39,116.37,8.5935]
[1743763197365,19.17243612,116.41,116.34,57.35243612]
[1743763197565,57.35243612,116.41,116.34,38.18]
[1743763197765,57.35243612,116.41,116.36,0.05488002]
[1743763197766,0.05579974,116.39,116.36,0.05488002]
[1743763198170,8.5935,116.38,116.36,0.05488002]
[1743763198970,8.5939,116.37,116.36,0.05488002]
[1743763199568,8.5936,116.38,116.36,0.05488002]
[1743763199767,0.05579974,116.39,116.36,0.05488002]
[1743763200171,8.5936,116.38,116.36,8.64948002]
[1743763200365,8.5936,116.38,116.36,0.05488002]
[1743763200571,0.05579974,116.39,116.36,0.05488002]
[1743763201269,8.5939,116.37,116.36,0.05488002]
[1743763201469,19.22823586,116.39,116.34,38.18]
[1743763201667,19.17243612,116.39,116.34,38.18]
[1743763201866,19.17243612,116.37,116.29,19.17243612]
[1743763202071,7.5859,116.36,116.29,57.35243612]
[1743763202266,8.5965,116.34,116.29,57.35243612]
[1743763202468,0.06223193,116.34,116.31,19.23671913]
[1743763202765,0.06223193,116.34,116.33,8.5964]
[1743763203472,0.06223193,116.34,116.33,27.76883612]
[1743763203766,3.8203,116.4,116.37,8.5935]
[1743763204073,3.725,116.44,116.35,57.35243612]
[1743763204372,8.5913,116.41,116.37,19.17243612]
[1743763204668,8.5913,116.41,116.36,38.18]
[1743763205076,0.06438095,116.4,116.39,8.5922]
[1743763205372,0.06438095,116.4,116.37,0.06231445]
[1743763206062,8.5929,116.39,116.37,0.06231445]
[1743763206465,8.5932,116.38,116.37,0.06231445]
[1743763206669,0.06438095,116.4,116.37,0.06231445]
[1743763207771,0.06438095,116.4,116.39,8.5924]
[1743763207971,0.06438095,116.4,116.37,0.06231445]
[1743763208166,8.65638095,116.4,116.37,0.06231445]
[1743763208470,0.06438095,116.4,116.37,0.06231445]
[1743763208670,8.593,116.39,116.37,0.06231445]
[1743763209368,8.65648095,116.4,116.37,0.06231445]
[1743763209565,0.06438095,116.4,116.37,0.06231445]
[1743763209868,8.65648095,116.4,116.37,0.06231445]
[1743763210372,0.06438095,116.4,116.37,0.06231445]
[1743763210765,0.06438095,116.4,116.38,8.5926]
[1743763210968,0.06438095,116.4,116.37,0.06231445]
[1743763211463,0.06438095,116.4,116.38,8.5932]
[1743763211969,0.06438095,116.4,116.37,8.65571445]
[1743763212169,0.06438095,116.4,116.37,0.06231445]
[1743763212672,0.06438095,116.4,116.39,8.5924]
[1743763212872,0.06438095,116.4,116.37,0.06231445]
[1743763213073,8.5932,116.38,116.37,0.06231445]
[1743763213268,0.06438095,116.4,116.37,0.06231445]
[1743763213968,57.33243612,116.39,116.26,17.2032]
[1743763214168,57.33243612,116.39,116.3,38.16]
[1743763214169,3.4987,116.38,116.3,38.16]
[1743763214569,3.8158,116.37,116.3,38.16]
[1743763214765,3.8158,116.37,116.31,19.17243612]
[1743763215072,0.05530724,116.35,116.33,19.17243612]
[1743763215272,0.05530724,116.35,116.34,46.7561]
[1743763215777,7.24e-06,116.35,116.34,46.7561]
[1743763219777,7.24e-06,116.35,116.34,38.16]
[1743763219974,7.24e-06,116.35,116.33,0.06045251]
[1743763220476,7.24e-06,116.35,116.34,8.5961]
[1743763221377,7.24e-06,116.35,116.34,46.7361]
[1743763221973,7.24e-06,116.35,116.34,65.90853612]
[1743763224783,7.3147,116.41,116.39,8.5922]
[1743763225469,15.9057,116.41,116.39,8.5922]
[1743763225879,15.96506272,116.41,116.39,8.65822774]
[1743763226181,3.55806272,116.41,116.4,8.5917]
[1743763226382,3.55806272,116.41,116.39,0.06602774]
[1743763226777,3.55806272,116.41,116.4,8.5917]
[1743763227080,3.55806272,116.41,116.39,0.06602774]
[1743763227384,3.55806272,116.41,116.39,8.65792774]
[1743763227583,12.14906272,116.41,116.39,8.65792774]
[1743763228185,3.55806272,116.41,116.39,8.65792774]
[1743763228483,3.55806272,116.41,116.39,0.06602774]
[1743763228880,3.55806272,116.41,116.37,38.14]
[1743763229185,3.55806272,116.41,116.36,8.5944]
[1743763229483,8.5935,116.38,116.36,8.5944]
[1743763229784,8.5935,116.38,116.35,8.5951]
[1743763229983,8.5929,116.39,116.34,57.31243612]
[1743763230181,0.06411082,116.38,116.35,0.06381484]
[1743763230482,0.06411082,116.38,116.36,19.17243612]
[1743763230782,0.06411082,116.38,116.37,46.7339]
[1743763231085,8.65731082,116.38,116.35,0.06381484]
[1743763231287,0.06411082,116.38,116.35,8.65881484]
[1743763231477,0.06411082,116.38,116.35,0.06381484]
[1743763231884,0.06411082,116.38,116.35,8.65921484]
[1743763232286,8.65771082,116.38,116.35,0.06381484]
[1743763232488,0.06411082,116.38,116.35,0.06381484]
[1743763232782,19.23654694,116.38,116.32,38.12]
[1743763232984,19.23654694,116.38,116.32,46.7173]
[1743763233288,8.5964,116.34,116.32,46.7173]
[1743763233684,19.17243612,116.38,116.28,329.8]
[1743763233886,8.5972,116.33,116.3,38.12]
[1743763234083,0.06328282,116.35,116.32,0.05720039]
[1743763234285,2.1981,116.35,116.32,0.05720039]
[1743763234486,2.25672485,116.35,116.32,0.05720039]
[1743763235384,0.05862485,116.35,116.33,57.29243612]
[1743763235688,2.3342,116.41,116.34,19.17243612]
[1743763235885,2.3342,116.41,116.37,19.17243612]
[1743763236085,2.3342,116.41,116.38,38.12]
[1743763236784,2.3342,116.41,116.38,0.06532698]
[1743763236986,2.3919001,116.41,116.35,367.96]
[1743763237288,8.5928,116.39,116.37,8.5939]
[1743763237888,8.5921,116.4,116.37,8.5939]
[1743763238085,2.3919001,116.41,116.37,0.05905561]
[1743763238388,2.3919001,116.41,116.38,38.12]
[1743763239487,8.5924,116.39,116.38,38.12]
[1743763239889,2.3919001,116.41,116.38,38.12]
[1743763240788,10.9832001,116.41,116.39,8.5924]
[1743763240987,10.9832001,116.41,116.38,38.12]
[1743763241485,2.3919001,116.41,116.38,38.12]
[1743763241895,2.3919001,116.41,116.39,8.5921]
[1743763242395,2.3919001,116.41,116.38,46.7128]
[1743763242396,10.9832001,116.41,116.38,46.7128]
[1743763242787,2.3919001,116.41,116.38,46.7128]
[1743763242991,2.3919001,116.41,116.4,8.5917]
[1743763243194,0.0577001,116.41,116.4,8.5917]
[1743763243393,8.6494001,116.41,116.39,0.05664177]
[1743763243589,2.2283,116.4,116.35,329.84]
[1743763243894,21.40073612,116.4,116.31,19.17243612]
[1743763244094,8.5951,116.36,116.33,8.5963]
[1743763244295,8.5951,116.36,116.31,57.29243612]
[1743763244296,21.40073612,116.4,116.31,57.29243612]
[1743763244697,8.65172693,116.37,116.34,0.06080706]
[1743763244897,0.05722693,116.37,116.34,0.06080706]
[1743763245798,19.22966305,116.37,116.31,38.12]
[1743763246196,8.5958,116.35,116.31,38.12]
[1743763246896,8.5943,116.37,116.34,8.5956]
[1743763247097,40.4929,116.38,116.34,8.5956]
[1743763247299,8.5957,116.35,116.32,8.5972]
[1743763247495,40.4929,116.38,116.31,57.29243612]
[1743763247695,0.05904366,116.35,116.32,0.03673203]
[1743763248200,0.05904366,116.35,116.33,8.5964]
[1743763248600,0.05904366,116.35,116.32,0.03673203]
[1743763248794,0.05904366,116.35,116.33,19.17243612]
[1743763249305,8.65474366,116.35,116.33,8.5965]
[1743763249497,8.65474366,116.35,116.32,0.03673203]
[1743763249802,8.65474366,116.35,116.33,8.5968]
[1743763250001,0.05904366,116.35,116.33,8.5968]
[1743763250503,0.05904366,116.35,116.32,0.03673203]
[1743763250899,0.05904366,116.35,116.33,8.5965]
[1743763251103,10.85024366,116.35,116.32,0.03673203]
[1743763251397,2.25474366,116.35,116.33,8.5969]
[1743763251893,2.25474366,116.35,116.33,8.5968]
[1743763252603,2.25474366,116.35,116.32,0.03673203]
[1743763253302,10.85014366,116.35,116.33,8.5966]
[1743763253503,2.25474366,116.35,116.33,8.5966]
[1743763253699,2.25474366,116.35,116.32,0.03673203]
[1743763255304,2.25474366,116.35,116.33,8.5965]
[1743763255806,2.25474366,116.35,116.32,0.03673203]
[1743763256003,2.25474366,116.35,116.34,8.5961]
[1743763256703,2.25474366,116.35,116.33,8.5965]
[1743763257402,2.25474366,116.35,116.32,0.03673203]
[1743763257606,8.5965,116.34,116.32,0.03673203]
[1743763257799,2.25474366,116.35,116.32,0.03673203]
[1743763258003,2.25474366,116.35,116.33,8.5966]
[1743763258803,10.85044366,116.35,116.33,8.5966]
[1743763258996,2.25474366,116.35,116.33,19.17243612]
[1743763259705,2.25474366,116.35,116.32,0.03673203]
[1743763260006,8.5965,116.34,116.32,8.63403203]
[1743763260303,59.54717978,116.35,116.28,19.17243612]
[1743763260508,8.5975,116.33,116.31,8.5982]
[1743763260804,59.48813612,116.35,116.26,19.17243612]
[1743763261104,8.5982,116.32,116.27,38.1]
[1743763261298,40.3157,116.35,116.27,38.1]
[1743763261497,0.06074234,116.31,116.27,38.1]
[1743763261704,0.06074234,116.31,116.3,8.5987]
[1743763262904,0.06074234,116.31,116.3,27.77113612]
[1743763263806,2.3729,116.38,116.34,19.17243612]
[1743763264005,2.3729,116.38,116.34,57.27243612]
[1743763265009,0.05977309,116.37,116.35,0.06074234]
[1743763265209,0.05977309,116.37,116.3,57.27243612]
[1743763265411,8.595,116.36,116.33,8.5965]
[1743763265608,2.2519,116.35,116.3,38.1]
[1743763266309,0.06440957,116.34,116.3,38.1]
[1743763266509,8.5969,116.33,116.3,38.1]
[1743763266711,0.06440957,116.34,116.3,38.1]
[1743763267110,0.06440957,116.34,116.3,57.27243612]
[1743763267509,0.06440957,116.34,116.32,8.5972]
[1743763268312,8.66090957,116.34,116.31,8.5979]
[1743763268509,0.06440957,116.34,116.3,38.1]
[1743763269008,8.5973,116.33,116.3,46.6987]
[1743763269214,0.06440957,116.34,116.3,38.1]
[1743763269515,8.5973,116.33,116.3,46.699]
[1743763269713,0.06440957,116.34,116.3,46.699]
[1743763269919,38.16440957,116.34,116.28,19.17243612]
[1743763270113,8.5984,116.31,116.28,8.6001]
[1743763270607,8.65592719,116.31,116.29,8.5998]
[1743763270812,0.05752719,116.31,116.28,19.17243612]
[1743763271314,0.05752719,116.31,116.26,57.27243612]
[1743763271716,0.05752719,116.31,116.28,19.17243612]
[1743763272019,0.05752719,116.31,116.3,8.5991]
[1743763272313,0.05752719,116.31,116.28,19.17243612]
[1743763272514,0.05752719,116.31,116.29,8.5998]
[1743763272711,0.05752719,116.31,116.26,57.27243612]
[1743763272914,0.05752719,116.31,116.26,19.17243612]
[1743763273108,8.6007,116.28,116.24,19.17243612]
[1743763273308,2.3749,116.3,116.22,57.27243612]
[1743763273513,0.05463388,116.27,116.22,57.27243612]
[1743763273714,0.05463388,116.27,116.22,19.17243612]
[1743763273916,19.22707,116.27,116.2,329.98]
[1743763274117,4.732,116.26,116.2,329.98]
[1743763274510,0.05853331,116.24,116.2,329.98]
[1743763275413,0.05853331,116.24,116.19,19.17243612]
[1743763275815,8.6043,116.23,116.17,30.69903201]
[1743763276116,33.07393201,116.25,116.16,38.1]
[1743763276313,8.66336905,116.21,116.16,38.1]
[1743763276813,8.608,116.19,116.15,8.6098]
[1743763277015,0.05706905,116.21,116.15,8.6098]
[1743763277211,30.69903201,116.19,116.1,360.77903201]
[1743763277416,8.6114,116.14,116.1,330.08]
[1743763278017,8.6742121,116.13,116.08,68.79903201]
[1743763278214,0.0625121,116.13,116.08,30.69903201]
[1743763278616,8.6745121,116.13,116.08,30.69903201]
[1743763278816,0.0625121,116.13,116.09,8.6143]
[1743763279013,0.0625121,116.13,116.08,30.69903201]
[1743763279220,0.0625121,116.13,116.07,30.69903201]
[1743763279420,38.1,116.14,116.09,8.6143]
[1743763279616,38.1,116.14,116.07,30.69903201]
[1743763279919,0.06468248,116.11,116.08,8.6147]
[1743763280120,0.06468248,116.11,116.05,360.77903201]
[1743763280519,0.06468248,116.11,116.1,8.6139]
[1743763282721,0.06468248,116.11,116.1,46.7339]
[1743763283929,8.248e-05,116.11,116.1,46.7339]
[1743763284220,6.8272,116.18,116.14,8.6106]
[1743763284517,38.12,116.22,116.17,8.6083]
[1743763284712,6.7135,116.23,116.14,68.81903201]
[1743763285116,68.81903201,116.28,116.18,30.69903201]
[1743763285318,0.05691726,116.2,116.19,38.12]
[1743763285621,1.72117039,116.2,116.19,38.12]
[1743763286123,1.72117039,116.2,116.19,46.7272]
[1743763286522,1.72117039,116.2,116.19,38.12]
[1743763286822,1.72117039,116.2,116.19,46.7272]
[1743763287521,1.72117039,116.2,116.18,8.66890053]
[1743763288318,1.72117039,116.2,116.18,0.06120053]
[1743763288824,10.32807039,116.2,116.18,0.06120053]
[1743763289720,1.72117039,116.2,116.18,0.06120053]
[1743763289923,4.06267039,116.2,116.18,0.06120053]
[1743763290331,8.6072,116.19,116.18,0.06120053]
[1743763290525,8.64237039,116.2,116.14,38.12]
[1743763291027,39.3414024,116.2,116.12,330.32]
[1743763291327,39.3414024,116.2,116.11,38.12]
[1743763291731,0.05915624,116.17,116.09,30.69903201]
[1743763292028,8.6115,116.14,116.1,46.7335]
[1743763292226,8.67188462,116.14,116.1,38.12]
[1743763292427,0.06038462,116.14,116.1,38.12]
[1743763292727,0.06038462,116.14,116.11,8.613]
[1743763292927,0.06038462,116.14,116.1,38.12]
[1743763293229,0.06038462,116.14,116.11,8.613]
[1743763293430,0.06038462,116.14,116.1,38.12]
[1743763293833,0.06038462,116.14,116.13,8.6117]
[1743763295626,0.06038462,116.14,116.13,46.7317]
[1743763295830,8.6076,116.19,116.16,8.609]
[1743763296529,8.64237039,116.2,116.13,68.81903201]
[1743763296724,6.9212,116.2,116.13,68.81903201]
[1743763296925,0.05656829,116.18,116.15,0.06230089]
[1743763297229,0.05656829,116.18,116.16,38.12]
[1743763297728,0.05656829,116.18,116.17,8.6087]